[Event "1000GM Schev-A February 2024"]
[Site "Santa Clara"]
[Date "2024.02.19"]
[Round "4.2"]
[White "Dominguez Aguilar, Guillermo"]
[Black "Sivakumar, Shaashwath"]
[Result "0-1"]
[ECO "B92"]
[WhiteElo "2319"]
[BlackElo "2205"]
[Annotator "TA"]
[PlyCount "102"]
[EventDate "2024.02.13"]
[EventType "schev"]
[EventCountry "USA"]
[SourceTitle "playchess.com"]
[Source "ChessBase"]
[SourceQuality "1"]
[TimeControl "5400+30"]

{[%evp 17,102,2,10,19,39,31,32,0,0,0,0,-8,-20,-16,-32,-52,-26,-49,11,11,7,0,18,27,32,-12,-8,-12,-12,-12,-12,-12,0,-39,-54,-44,-33,-138,-199,-348,-134,-113,-92,-89,0,0,0,-57,0,0,0,0,58,92,64,-7,0,-29985,-821,-860,-745,-749,-559,-1046,-1042,-977,-925,-900,-678,-668,-389,-1291,-1236,-581,0,-615,259,259,1116,-29995,0,-1334,-454,-454,-388,-395,-318]} 1. e4 {[%emt 0:01:12]} c5 {[%emt 0:00:10]} 2. Nf3 {[%emt 0:00:41]} d6 {[%emt 0:00:06]} 3. d4 {[%emt 0:00:46]} cxd4 {[%emt 0:00:06]} 4. Nxd4 {[%emt 0:00:04]} Nf6 {[%emt 0:00:08]} 5. Nc3 {[%emt 0:00:05]} a6 {[%emt 0:00:08]} 6. Be2 {[%emt 0:00:10]} e5 {[%emt 0:00:06]} 7. Nb3 {[%emt 0:00:07]} Be7 {[%emt 0:00:05]} 8. Bg5 {[%emt 0:00:19]} Be6 {[%emt 0:00:40]} 9. Bxf6 {[%emt 0:00:25]} Bxf6 {[%emt 0:00:07]} 10. Qd3 {[%emt 0:00:06]} Qc7 {[%emt 0:03:04]} 11. O-O-O {[%emt 0:01:05]} Be7 {[%emt 0:00:04]} 12. h4 {[%emt 0:00:35] Weiß steht etwas besser.} Nd7 {[%emt 0:01:05]} 13. Kb1 {[%emt 0:06:19]} O-O {[%emt 0:03:20]} 14. g4 {[%emt 0:01:28]} b5 {[%emt 0:00:34]} 15. Nd5 {[%emt 0:01:05]} Bxd5 {[%emt 0:00:06]} 16. exd5 {[%emt 0:00:11]} a5 {[%emt 0:05:00]} 17. Nd2 {[%emt 0:07:27][%cal Od3f5]} a4 {[%emt 0:16:07]} (17... b4 $15) 18. a3 $11 {[%emt 0:00:19][%cal Oc2c3]} Nc5 {[%emt 0:07:03]} 19. Qe3 {[%emt 0:06:10]} Rab8 {[%emt 0:07:04]} 20. c3 $1 {[%emt 0:01:24]} f5 {[%emt 0:02:01]} 21. g5 {[%emt 0:08:19]} Qd7 {[%emt 0:02:13]} 22. f4 {[%emt 0:00:42]} e4 {[%emt 0:13:45] Es drohte Nf3} 23. Nf1 {[%emt 0:01:05]} Bd8 {[%emt 0:06:14]} 24. Qh3 {[%emt 0:17:50]} Ba5 {[%emt 0:04:48][%cal Ob5b4]} 25. Rh2 {[%emt 0:23:42] [#]} b4 $1 {[%emt 0:03:11]} 26. cxb4 {[%emt 0:01:15]} Bxb4 {[%emt 0:00:03]} 27. axb4 {[%emt 0:00:07]} (27. Bc4 $15) 27... Rxb4 $17 {[%emt 0:00:11]} 28. Qc3 {[%emt 0:00:26]} (28. Ne3 $2 a3 29. Nc4 Rb3 $19) (28. Rc1 $142 Qb7 29. Bc4) 28... Qb7 $2 {[%emt 0:03:35]} (28... Rb3 $19 29. Qe1 a3) 29. Bc4 {[%emt 0:00:42] [#]} a3 $1 {[%emt 0:04:56][%mdl 512]} 30. Ne3 {[%emt 0:08:11]} Na4 {[%emt 0:00:44]} (30... Ra8 $1 $17 {[%cal Ra8a4] ...Raa4 wäre nun fies.} 31. Nxf5 Rxc4 32. Qxc4 a2+ 33. Kc2 Ra4) 31. Qxa3 $11 {[%emt 0:00:27]} Ra8 {[%emt 0:00:57] Wehrt Ba6 ab} (31... Rb8 $5 32. Rdd2 $8 Ra8 $11) 32. Ba2 {[%emt 0:07:11]} (32. Rc1 $11) 32... Nc5 {[%emt 0:08:34]} (32... Nxb2 $1 $15 33. Qxb4 Qxb4 34. Rxb2 Qa3 35. Nxf5 Qf3) 33. Qc3 {[%emt 0:01:03][%cal Od1d4] Schwarz muss nun Rd4! beachten.} Na4 {[%emt 0:04:16]} 34. Qc1 {[%emt 0:03:19]} Rc8 {[%emt 0:01:56]} ({Vorzuziehen ist} 34... Qa7 $11 35. b3 (35. Nxf5 $2 Nxb2 $19) 35... Nc5 36. Nxf5 Nxb3) 35. Nc4 $1 $14 {[%emt 0:00:18] Und Rc2 würde nun gewinnen.} (35. Bc4 Qa7 $11) 35... Qa6 {[%emt 0:00:26][%cal Oa4b6]} 36. Rc2 {[%emt 0:00:56]} (36. Rd4 $1 $14) 36... Ra8 $1 $11 {[%emt 0:00:09][%cal Oa4b2]} 37. Qd2 $2 {[%emt 0:02:07][%mdl 8192] [#]} (37. Na3 $11 Nxb2 38. Rxb2 Qxa3 39. Ka1) 37... Nc5 $1 {[%emt 0:00:22]} 38. b3 {[%emt 0:00:53]} (38. Qxb4 Qxa2+) 38... Rxb3+ {[%emt 0:00:16]} (38... Nxb3 $2 39. Qxb4 Nc5 40. Nxd6 $18) 39. Ka1 {[%emt 0:00:23]} Rb7 {[%emt 0:04:48]} 40. Rb1 {[%emt 0:00:34] Droht Rxb7 und aus.} Nb3+ $1 {[%emt 0:00:18]} (40... Qxa2+ $2 41. Rxa2 Rxb1+ 42. Kxb1 $18) 41. Rxb3 {[%emt 0:00:06]} Rxb3 {[%emt 0:00:04]} 42. h5 {[%emt 0:00:20]} Rd3 {[%emt 0:01:53]} 43. Qc1 {[%emt 0:00:31]} Qa7 {[%emt 0:00:28]} (43... Rxd5 $2 44. Ne3 Kf8 45. Nxd5 $18) 44. g6 $2 {[%emt 0:01:27] [#]} (44. Nb6 Rf8 (44... Qxb6 $2 45. Rc8+ Kf7 46. Rxa8 $19) 45. Nc8 Qd4+ 46. Qb2) 44... Rc3 $3 $19 {[%emt 0:01:19][%mdl 512] ( -> ...Rxc4)} 45. Qd2 {[%emt 0:01:08]} (45. Qb1 Qd4) 45... Rd3 46. Qc1 Qd4+ {[%mdl 8192]} (46... Rxd5 $2 47. Nb6 (47. Ne3 Qd4+ 48. Kb1 Rb8+ 49. Rb2 Qd3+ 50. Ka1 Ra8 $18) 47... Rd8 48. Nxd5 $18) (46... Qa4 $19 {[%cal Od3c3] und alles wird gut. Droht stark ...Rc3!} 47. Qb1 Rb3 (47... Rxd5 $2 48. Rb2 $18)) 47. Nb2 $1 $18 {[%emt 0:01:00]} Rc3 {[%emt 0:01:30] [#]} (47... hxg6 48. hxg6 Rf8 49. Qh1 $18) (47... Rf8) 48. Nc4 $4 {[%emt 0:00:30][%mdl 8192] [#]} Qa7 {[%emt 0:00:30]} 49. Qd2 $1 $19 {[%emt 0:00:30]} Rxc2 {[%emt 0:00:30]} (49... Qg1+ $142 50. Kb2 Rd3) 50. Qxc2 {[%emt 0:00:30]} Qd4+ {[%emt 0:00:30]} 51. Nb2 {[%emt 0:00:30]} e3 {[%emt 0:00:30] Gewichteter Fehlerwert: Weiß=0.55/Schwarz=1.22.  Verlustzug:     	Weiß=1     	---        Gewinn verpasst:   	Weiß=1     	Schwarz=2     Fehler:       	Weiß=4     	Schwarz=6     Ungenau:       	Weiß=3     	---        OK:         	Weiß=7     	Schwarz=11    Bester:       	Weiß=3     	Schwarz=2     Stark:        	Weiß=3     	Schwarz=1} (51... Qxd5 $2 {zu gefräßig.} 52. Na4 $18) 0-1

[Event "1000GM Schev-A February 2024"]
[Site "Santa Clara"]
[Date "2024.02.19"]
[Round "4.3"]
[White "Zhou, Ruoyu"]
[Black "Jimenez Garcia, Emmanuel"]
[Result "1/2-1/2"]
[ECO "B90"]
[WhiteElo "2112"]
[BlackElo "2394"]
[Annotator "TA"]
[PlyCount "106"]
[EventDate "2024.02.13"]
[EventType "schev"]
[EventCountry "USA"]
[SourceTitle "playchess.com"]
[Source "ChessBase"]
[SourceQuality "1"]
[TimeControl "5400+30"]

{[%evp 18,106,20,8,16,-25,-1,-9,0,6,33,8,10,0,0,0,0,0,0,0,5,0,0,-27,-16,-25,-35,-25,-41,-37,-56,-69,-66,-59,-45,-52,-23,-58,-23,-55,-24,-93,-90,-92,-87,-93,-93,-97,-89,-86,-86,-115,-115,-115,-115,-115,-115,-115,-94,-108,0,-110,0,-97,-68,-68,-68,-165,-165,-376,-333,-204,-194,-208,-206,-206,-211,-192,-122,-139,-142,-111,0,-120,0,-202,-159,-152,0,0,0]} 1. e4 {[%emt 0:00:14]} c5 {[%emt 0:00:37]} 2. Nf3 {[%emt 0:00:16]} d6 {[%emt 0:00:13]} 3. d4 {[%emt 0:00:09]} cxd4 {[%emt 0:00:03]} 4. Nxd4 {[%emt 0:00:11]} Nf6 {[%emt 0:00:06]} 5. Nc3 {[%emt 0:00:08]} a6 {[%emt 0:00:05]} 6. Be3 {[%emt 0:00:06]} e5 {[%emt 0:00:08]} 7. Nf3 {[%emt 0:00:06]} Be7 {[%emt 0:00:08]} 8. Bc4 {[%emt 0:00:18]} O-O {[%emt 0:00:18]} 9. O-O {[%emt 0:00:18]} Be6 {[%emt 0:00:12]} 10. Bb3 {[%emt 0:00:29]} Nc6 {[%emt 0:07:15]} 11. h3 {[%emt 0:02:47]} Na5 {[%emt 0:02:43]} 12. Bg5 {[%emt 0:02:53]} Nxb3 {[%emt 0:02:18]} 13. axb3 {[%emt 0:00:10]} Nd7 {[%emt 0:10:58]} 14. Bxe7 {[%emt 0:02:07]} Qxe7 {[%emt 0:00:04]} 15. Qd2 {[%emt 0:02:30]} Nf6 {[%emt 0:01:57]} 16. Rfd1 {[%emt 0:06:17]} Rfd8 {[%emt 0:05:06]} 17. Qe3 {[%emt 0:02:54]} Qc7 {[%emt 0:02:19]} 18. Rd2 {[%emt 0:07:17]} b5 {[%emt 0:08:30]} 19. Rad1 {[%emt 0:02:12]} h6 {[%emt 0:01:52]} 20. Nh4 {[%emt 0:05:43]} b4 {[%emt 0:08:46]} 21. Nd5 {[%emt 0:00:48]} Nxd5 {[%emt 0:12:46]} 22. exd5 {[%emt 0:00:07]} Bd7 {[%emt 0:00:09]} 23. Qe4 {[%emt 0:01:58]} a5 {[%emt 0:35:27]} 24. Nf5 {[%emt 0:00:55]} Bxf5 {[%emt 0:00:00]} 25. Qxf5 {[%emt 0:00:11]} Qd7 {[%emt 0:00:00]} 26. Qd3 {[%emt 0:01:33]} Rdc8 {[%emt 0:00:00]} 27. Rf1 {[%emt 0:06:11]} f5 {[%emt 0:00:00]} 28. Re1 {[%emt 0:01:51]} Rc5 {[%emt 0:00:00]} 29. f3 {[%emt 0:05:16]} (29. c4 $11 {remains equal.}) 29... Rac8 {[%emt 0:00:00]} 30. Kh2 {[%emt 0:02:47]} Qf7 {[%emt 0:00:00]} 31. Ree2 {[%emt 0:01:26]} Qf6 {[%emt 0:00:00]} 32. Re1 {[%emt 0:03:22]} Qg5 {[%emt 0:00:00]} 33. Ree2 {[%emt 0:02:49]} h5 {[%emt 0:00:00]} 34. Rd1 {[%emt 0:04:30]} h4 {[%emt 0:00:00]} 35. Kg1 {[%emt 0:01:03] White is weak on the dark squares} Qf4 {[%emt 0:00:00]} 36. Rdd2 {[%emt 0:04:17]} Kh7 {[%emt 0:00:00]} 37. Rd1 {[%emt 0:02:02]} Qg5 {[%emt 0:00:00]} 38. Rdd2 {[%emt 0:01:11]} Qf4 {[%emt 0:00:00]} 39. Rd1 {[%emt 0:00:53]} Kg8 {[%emt 0:00:00]} 40. Rdd2 $1 {[%emt 0:00:56]} Qd4+ {[%emt 0:00:17]} 41. Qxd4 {[%emt 0:01:44]} exd4 {[%emt 0:00:01]} 42. Rxd4 {[%emt 0:00:33]} ({White should play} 42. f4 $15) 42... Rxc2 $19 {[%emt 0:00:03]} 43. Rdd2 {[%emt 0:00:19]} (43. Kf1) 43... Rxd2 {[%emt 0:02:23]} 44. Rxd2 {[%emt 0:02:43][%mdl 4096] Endgame. KR-KR} Kf7 {[%emt 0:00:54]} 45. f4 {[%emt 0:02:09] [#]} Re8 $1 {[%emt 0:02:00] And now ...Re3 would win.} 46. Kf2 {[%emt 0:00:30]} Re4 {[%emt 0:00:05]} 47. Kf3 {[%emt 0:00:14]} Re1 {[%emt 0:01:39] Dodges Rd1} (47... Kf6 $19 48. Rd1 g5 49. fxg5+ Kxg5) 48. Kf2 $17 {[%emt 0:00:53]} Rc1 {[%emt 0:02:16]} 49. Ke3 {[%emt 0:00:53]} Re1+ {[%emt 0:00:14]} 50. Kf2 $1 {[%emt 0:00:14]} Re4 {[%emt 0:00:15]} (50... Rh1 $17 51. Ke3 Kf6) 51. Kf3 $19 {[%emt 0:00:22]} g6 {[%emt 0:00:40]} 52. Rd1 {[%emt 0:00:41] [#]} g5 $2 {[%emt 0:01:25]} 53. fxg5 $11 {[%emt 0:00:29]} Re5 {[%emt 0:00:23] Weighted Error Value: White=0.16 (very precise) /Black=0.22 (precise) .  Mistake:       	White=3     	Black=3      Inaccurate:     	White=5     	Black=4      OK:         	White=6     	Black=16     Best:        	White=5     	Black=2      Strong:       	White=2     	---} 1/2-1/2

[Event "1000GM Schev-A February 2024"]
[Site "Santa Clara"]
[Date "2024.02.19"]
[Round "4.4"]
[White "Rajaram, Rohan"]
[Black "Martin Carmona, Gaston Manuel"]
[Result "1-0"]
[ECO "E16"]
[WhiteElo "2151"]
[BlackElo "2343"]
[Annotator "TA"]
[PlyCount "117"]
[EventDate "2024.02.13"]
[EventType "schev"]
[EventCountry "USA"]
[SourceTitle "playchess.com"]
[Source "ChessBase"]
[SourceQuality "1"]
[TimeControl "5400+30"]

{[%evp 14,117,13,8,23,-14,16,0,13,11,17,24,16,11,30,33,37,20,24,26,22,22,25,23,22,16,27,12,26,0,0,0,0,0,0,-10,0,-16,0,-10,0,0,0,-9,0,-82,-79,-92,-31,-95,-35,-205,-201,-180,0,-153,-81,-75,-55,-54,-20,-112,-112,-100,-108,-129,-132,-79,-114,-218,-232,-231,-220,-244,-237,-259,-201,-181,0,-31,0,0,0,0,0,0,0,0,16,0,173,0,0,0,209,140,207,204,209,103,132,0,29984,29984,29990,29991]} 1. d4 {[%emt 0:00:02]} Nf6 {[%emt 0:00:31]} 2. c4 {[%emt 0:00:04]} e6 {[%emt 0:00:07]} 3. g3 {[%emt 0:00:02]} Bb4+ {[%emt 0:00:12]} 4. Nd2 {[%emt 0:00:07]} d5 {[%emt 0:01:31]} 5. Bg2 {[%emt 0:00:20]} O-O {[%emt 0:00:06]} 6. Ngf3 {[%emt 0:00:12]} b6 {[%emt 0:01:44]} 7. O-O {[%emt 0:00:28]} Bb7 {[%emt 0:00:05]} 8. Ne5 {[%emt 0:00:43]} Re8 {[%emt 0:00:07]} 9. Ndf3 {[%emt 0:01:35][%cal Oc4c5]} Bf8 {[%emt 0:00:19]} 10. Qc2 {[%emt 0:01:28]} h6 {[%emt 0:04:51] Verhindert Ng5. Die Stellung ist ausgeglichen.} 11. b3 {[%emt 0:03:13]} Nbd7 {[%emt 0:00:45]} 12. Bb2 {[%emt 0:03:55]} (12. Nxd7 {vereinfacht} Nxd7 13. Bb2 a5 14. Rac1) 12... Rc8 {[%emt 0:04:52]} 13. Rfd1 {[%emt 0:01:40]} c6 {[%emt 0:00:20]} 14. Rac1 {[%emt 0:02:19]} a5 {[%emt 0:30:22]} 15. a4 {[%emt 0:09:38]} Nb8 {[%emt 0:00:33][%cal Bd7b8,Bb8a6,Ba6b4,Bb4d3][%mdl 32]} 16. e3 {[%emt 0:03:07]} Na6 {[%emt 0:00:13]} 17. Qe2 {[%emt 0:01:33]} Nb4 {[%emt 0:01:45]} 18. Nd3 {[%emt 0:00:49]} Nxd3 {[%emt 0:06:42]} 19. Qxd3 {[%emt 0:00:22]} Ba6 {[%emt 0:03:59]} 20. Ne5 {[%emt 0:05:14]} Bd6 {[%emt 0:00:24]} 21. f4 {[%emt 0:01:50]} Qe7 {[%emt 0:03:52]} 22. Qd2 {[%emt 0:05:37][%cal Oc4c5]} Bb7 {[%emt 0:04:43]} 23. Rc2 {[%emt 0:06:14]} c5 {[%emt 0:06:03]} 24. Qe2 {[%emt 0:09:36]} Red8 {[%emt 0:03:15]} 25. Bf3 {[%emt 0:02:54]} Rc7 {[%emt 0:10:24]} 26. Rdc1 {[%emt 0:03:42]} Rdc8 {[%emt 0:01:04]} 27. Qg2 {[%emt 0:11:40]} cxd4 {[%emt 0:00:58]} 28. Bxd4 {[%emt 0:01:02]} Bc5 {[%emt 0:00:25]} 29. Kh1 {[%emt 0:03:15]} (29. Bxc5 $11 Qxc5 30. Qd2) 29... Bxd4 $17 {[%emt 0:02:33]} 30. exd4 {[%emt 0:00:03]} Qb4 {[%emt 0:00:10]} (30... Qa3 $17 31. Qd2 Qxb3) 31. Rc3 {[%emt 0:03:01]} (31. Qd2 $15) 31... Ba6 {[%emt 0:01:24]} (31... dxc4 $17 32. Rxc4 (32. Bxb7 $2 cxb3 33. Rxc7 Rxc7 $17) 32... Rxc4 (32... Qxb3 $2 33. Rxc7 Rxc7 34. Rxc7 $18) 33. bxc4 Bd5 34. Bxd5 Nxd5 (34... exd5 35. g4 $15)) 32. Nd3 $2 {[%emt 0:00:51]} (32. g4 $1 $15) 32... Qe7 $19 {[%emt 0:01:23][%cal Rd5c4]} 33. Ne5 {[%emt 0:00:51]} Qb4 {[%emt 0:01:20][%cal Rd5c4]} 34. Nd3 {[%emt 0:00:09]} Qa3 {[%emt 0:00:57]} (34... Qf8 $142 $1 {[%cal Rd5c4]} 35. Ne5 dxc4 36. bxc4 Nd5 37. Bxd5 (37. cxd5 $2 {geht unter.} Rxc3 38. Rg1 Bb7 $19) 37... exd5) 35. Qb2 $17 {[%emt 0:01:23]} Qe7 {[%emt 0:04:07]} (35... Qxb2 $5 36. Nxb2 dxc4 37. bxc4 Nd5 38. Bxd5 exd5 $17) 36. Ne5 {[%emt 0:03:23]} Qd6 {[%emt 0:01:17]} 37. Qf2 {[%emt 0:03:48]} (37. R3c2 $11) 37... dxc4 {[%emt 0:00:48]} 38. bxc4 {[%emt 0:00:44]} Qb4 {[%emt 0:00:02][%csl LRa4,LRc4]} 39. Qc2 {[%emt 0:02:46] [#]} Nd5 $1 {[%emt 0:01:14][%mdl 512]} 40. Bxd5 {[%emt 0:02:07]} exd5 {[%emt 0:00:01]} 41. Nd3 {[%emt 0:01:03]} (41. Rb3 $17 Qxa4 42. Rxb6 Qxc2 43. Rxc2 Bxc4 44. Nxc4 dxc4 (44... Rxc4 45. Ra2 $17) 45. Ra6) 41... Qe7 $19 {[%emt 0:00:02][%cal Rc7c4]} 42. Re1 {[%emt 0:00:42]} Qf6 {[%emt 0:00:01]} 43. c5 {[%emt 0:00:56]} Qxd4 {[%emt 0:00:25]} 44. c6 {[%emt 0:00:50]} Qf6 {[%emt 0:01:34][%cal Od5d4] Weiss muss nun ...d4! beachten.} 45. Ne5 {[%emt 0:00:12]} b5 $2 {[%emt 0:03:20]} (45... d4 $19 46. Rb3 Bb7 47. Rxb6 Bxc6+ 48. Nxc6 Rxc6 49. Rxc6 Qxc6+ 50. Qxc6 Rxc6) 46. Rc5 {[%emt 0:01:09]} bxa4 {[%emt 0:00:39]} 47. Qxa4 {[%emt 0:00:30]} Bc4 {[%emt 0:01:18]} 48. Qxa5 {[%emt 0:00:53][%cal Oh1g1]} Qd6 {[%emt 0:00:34]} 49. Rd1 {[%emt 0:01:09]} Qe6 {[%emt 0:00:18][%cal Rc7c6]} 50. Re1 {[%emt 0:00:48] Nxc4 wäre nun fies.} Re7 {[%emt 0:00:45]} 51. c7 {[%emt 0:03:03]} Ree8 $2 {[%emt 0:00:52] [#] Schwarz hat schwache schwarze Felder} (51... Qa6 $11) 52. Nf3 $2 {[%emt 0:01:22]} (52. Kg2 $1 $18 {Droht stark Nxc4.} Qf6 53. Rc6) 52... Be2 $11 {[%emt 0:00:28]} 53. Ne5 {[%emt 0:00:09]} (53. Rxd5 {führt zum Matt.} Bxf3+ 54. Kg1 Qh3 (54... Qxe1+ $2 55. Qxe1 Rxe1+ 56. Kf2 $19) (54... Qxe1+ $2 55. Qxe1 Rxe1+ 56. Kf2 $19)) 53... Qh3 $2 {[%emt 0:00:37]} 54. Qd2 {[%emt 0:00:54]} (54. Rxe2 $2 Qf1#) 54... Ba6 {[%emt 0:00:28]} (54... Bc4 $16 {kämpft weiter.}) 55. Qxd5 $18 {[%emt 0:00:45]} Qf5 {[%emt 0:00:26]} 56. Qc6 {[%emt 0:00:43]} (56. Kg1 $18 {und Weiss behält klar die Oberhand.}) 56... Re6 $16 {[%emt 0:00:28] [#]} 57. Qd5 {[%emt 0:00:34] Weiß hat aktiveres Spiel.} (57. Qa4 $1 $16) 57... f6 $2 {[%emt 0:00:22][%mdl 8192]} (57... Ree8 $11) 58. g4 {[%emt 0:00:17]} Bb7 {[%emt 0:00:34]} 59. Qxb7 {[%emt 0:00:18] Was für ein Kampf!   Gewichteter Fehlerwert: Weiß=0.33/Schwarz=0.38.  Verlustzug:     	Weiß=1     	Schwarz=3     Gewinn verpasst:   	Weiß=1     	Schwarz=1     Fehler:       	Weiß=6     	Schwarz=4     Ungenau:       	Weiß=4     	Schwarz=3     OK:         	Weiß=10    	Schwarz=15    Bester:       	Weiß=4     	Schwarz=2     Brilliant:      	---       	Schwarz=1} 1-0

[Event "1000GM Schev-A February 2024"]
[Site "Santa Clara"]
[Date "2024.02.19"]
[Round "4.5"]
[White "Arenas, David"]
[Black "Sivakumar, Shaaketh"]
[Result "1/2-1/2"]
[ECO "C19"]
[WhiteElo "2406"]
[BlackElo "2364"]
[Annotator "RC"]
[PlyCount "55"]
[EventDate "2024.02.13"]
[EventType "schev"]
[EventCountry "USA"]
[SourceTitle "playchess.com"]
[Source "ChessBase"]
[SourceQuality "1"]
[TimeControl "5400+30"]

1. e4 {[%emt 0:03:53]} e6 {[%emt 0:00:06]} 2. d4 {[%emt 0:00:06]} d5 {[%emt 0:00:05]} 3. Nc3 {[%emt 0:00:05]} Bb4 {[%emt 0:00:07]} 4. e5 {[%emt 0:00:05]} Ne7 {[%emt 0:00:05]} 5. a3 {[%emt 0:00:17]} Bxc3+ {[%emt 0:00:07]} 6. bxc3 {[%emt 0:00:04]} c5 {[%emt 0:00:09]} 7. Nf3 {[%emt 0:00:05]} Qc7 {[%emt 0:00:40]} 8. Bd3 {[%emt 0:00:16]} b6 {[%emt 0:00:21]} 9. a4 {[%emt 0:00:52]} Ba6 {[%emt 0:01:44]} 10. Bxa6 {[%emt 0:02:00]} Nxa6 {[%emt 0:00:02]} 11. O-O {[%emt 0:00:10]} Rc8 {[%emt 0:01:31]} 12. a5 {[%emt 0:00:38]} Nb8 {[%emt 0:01:54]} 13. axb6 {[%emt 0:04:59]} axb6 {[%emt 0:00:03]} 14. Ba3 {[%emt 1:24:00]} O-O {[%emt 0:01:03]} 15. Qe2 {[%emt 0:00:00]} Nd7 {[%emt 0:00:25]} 16. c4 {[%emt 0:00:00]} Rfe8 {[%emt 0:02:17]} 17. dxc5 {[%emt 0:00:00]} Nxc5 {[%emt 0:00:27]} 18. Nd4 {[%emt 0:00:00]} Ne4 {[%emt 0:07:16]} 19. Nb5 {[%emt 0:00:00]} Qd7 {[%emt 0:02:10]} 20. Rfd1 {[%emt 0:00:00]} Red8 {[%emt 0:06:15]} 21. cxd5 {[%emt 0:00:00]} Nxd5 {[%emt 0:01:36]} 22. Kf1 {[%emt 0:00:00]} Qe8 {[%emt 0:11:33]} 23. Bb2 {[%emt 0:00:00]} Nf4 {[%emt 0:02:33]} 24. Qxe4 {[%emt 0:00:00]} Qxb5+ {[%emt 0:00:26]} 25. c4 {[%emt 0:00:00]} Qb3 {[%emt 0:02:55]} 26. Rxd8+ {[%emt 0:00:00]} Rxd8 {[%emt 0:00:01]} 27. Qd4 {[%emt 0:00:00]} Rc8 {[%emt 0:58:09]} 28. Ke1 {[%emt 0:07:00]} 1/2-1/2

[Event "1000GM Schev-A February 2024"]
[Site "Santa Clara"]
[Date "2024.02.19"]
[Round "5.1"]
[White "Arutla, Aditya"]
[Black "Dominguez Aguilar, Guillermo"]
[Result "1-0"]
[ECO "B56"]
[WhiteElo "2132"]
[BlackElo "2319"]
[Annotator "TA"]
[PlyCount "55"]
[EventDate "2024.02.13"]
[EventType "schev"]
[EventCountry "USA"]
[SourceTitle "playchess.com"]
[Source "ChessBase"]
[SourceQuality "1"]
[TimeControl "5400+30"]

{[%evp 14,55,58,60,74,70,72,80,72,54,61,41,41,42,48,29,68,37,70,80,90,85,142,148,252,247,241,234,230,233,264,263,300,166,262,252,254,264,448,456,1839,1760,1460,1372]} 1. e4 {[%emt 0:00:01]} c5 {[%emt 0:04:21]} 2. Nf3 {[%emt 0:00:10][%cal Bg1f3,Bf3d4,Bd4e2,Be2g3][%mdl 32]} d6 {[%emt 0:00:29]} 3. d4 {[%emt 0:00:13]} cxd4 {[%emt 0:00:11]} 4. Nxd4 {[%emt 0:00:06]} Nf6 {[%emt 0:00:07]} 5. Nc3 {[%emt 0:00:04]} e5 {[%emt 0:00:29]} 6. Bb5+ {[%emt 0:00:29]} Bd7 {[%emt 0:00:09]} 7. Bxd7+ {[%emt 0:00:23]} Qxd7 {[%emt 0:00:02]} 8. Nde2 {[%emt 0:00:14]} Qc6 {[%emt 0:00:09]} 9. Ng3 {[%emt 0:00:44]} h6 {[%emt 0:01:03]} 10. O-O {[%emt 0:01:27]} Nbd7 {[%emt 0:00:12] Weiß steht besser.} 11. f3 {[%emt 0:03:58]} g6 {[%emt 0:01:17]} 12. Be3 {[%emt 0:05:08]} Nb6 {[%emt 0:02:04]} 13. Kh1 {[%emt 0:06:22]} Nc4 {[%emt 0:00:42]} 14. Bc1 {[%emt 0:02:50]} Be7 {[%emt 0:03:01]} 15. Re1 {[%emt 0:09:24]} Nb6 {[%emt 0:21:46]} 16. a4 {[%emt 0:08:23][%cal Ba2a4,Ba4a5][%mdl 32]} a6 {[%emt 0:01:48]} 17. a5 {[%emt 0:02:24]} Nc4 {[%emt 0:20:54]} ({Besser ist} 17... Nbd7) 18. Nd5 $16 {[%emt 0:20:33] Nxe7 wäre nun fies.} Nxd5 {[%emt 0:00:53]} (18... b6 $16 19. Nxe7 Kxe7 20. axb6 Nxb6) 19. exd5 $18 {[%emt 0:03:28]} Qc7 {[%emt 0:01:06]} 20. b3 {[%emt 0:04:16]} Nxa5 {[%emt 0:01:00] [#]} 21. f4 $1 {[%emt 0:00:27]} b6 {[%emt 0:21:59]} 22. Bb2 {[%emt 0:05:24]} f6 {[%emt 0:02:33] Schwarz ist schwach auf den weissen Feldern} 23. Qd3 {[%emt 0:06:09]} (23. Qg4 $142) 23... Kf7 {[%emt 0:00:52]} (23... Rg8 $142 24. fxe5 dxe5) 24. Rf1 {[%emt 0:00:58]} Nb7 {[%emt 0:02:32]} 25. Rae1 {[%emt 0:01:15]} (25. Rxa6 Nc5 26. Qe2 Rxa6 $19 (26... Nxa6 27. fxe5 Rhe8 28. exd6 $11)) 25... Kg7 $2 {[%emt 0:13:21]} (25... Nc5 26. Qf3 Nd7) 26. fxe5 {[%emt 0:02:51] Weiß steht klar auf Gewinn.} fxe5 {[%emt 0:00:00] [#]} (26... dxe5 $142 27. Rxe5 Bd8 (27... fxe5 $2 {ist das falsche Schlagen.} 28. Nh5+ gxh5 29. Qg3+ Bg5 30. Bxe5+ Kg8 31. Bxc7 $18)) 27. Rxe5 $3 {[%emt 0:00:38][%mdl 512]} dxe5 {[%emt 0:00:00] [#]} 28. Nh5+ $1 {[%emt 0:00:08][%mdl 512] Gewichteter Fehlerwert: Weiß=0.10 (sehr präzise) /Schwarz=0.41.  Fehler:       	Weiß=1     	Schwarz=5     Ungenau:       	Weiß=1     	Schwarz=2     OK:         	Weiß=8     	Schwarz=5     Bester:       	Weiß=2     	---        Stark:        	Weiß=1     	---} 1-0